bitfinex-derivatives/quotes_SOLF0:USTF0_20251125
["timestamp","ask_amount","ask_price","bid_price","bid_amount"]
[1764034813177,0.04843652,138.25,138.23,9.08457065]
[1764034814463,0.04843652,138.25,138.24,24.8]
[1764034815875,2.99,138.3,138.24,24.8]
[1764034816073,6.55610571,138.32,138.25,101.3012]
[1764034816271,16.05430571,138.34,138.25,101.3012]
[1764034816476,5.16178452,138.33,138.25,147.3012]
[1764034816680,9.4982,138.34,138.25,147.3012]
[1764034816973,5.16176314,138.33,138.25,147.3012]
[1764034817174,9.4982,138.34,138.27,6.5111]
[1764034817380,0.04610359,138.3,138.28,24.85359179]
[1764034818677,0.04610359,138.3,138.28,31.36429179]
[1764034825889,0.04610359,138.3,138.29,24.78]
[1764034828293,0.04610359,138.3,138.28,0.05359179]
[1764034828484,3.07610359,138.3,138.17,21.72]
[1764034828685,3.03,138.3,138.17,101.3593]
[1764034828886,3.03,138.28,138.18,19.86]
[1764034829492,0.05159424,138.24,138.22,0.04846754]
[1764034829681,0.05159424,138.24,138.23,24.78]
[1764034829876,0.05159424,138.24,138.22,0.04846754]
[1764034829877,3.08159424,138.24,138.22,0.04846754]
[1764034830392,3.08159424,138.24,138.19,24.78]
[1764034830587,3.03,138.23,138.15,1.2592271]
[1764034831082,3.03,138.21,138.16,24.78]
[1764034831284,0.04898915,138.2,138.16,24.78]
[1764034831786,3.07898915,138.2,138.16,24.78]
[1764034832182,0.04898915,138.2,138.16,24.78]
[1764034833083,0.04898915,138.2,138.17,101.3584]
[1764034833782,3.03,138.26,138.19,101.3434]
[1764034833983,5.05349724,138.29,138.2,24.8]
[1764034833984,3.03,138.29,138.2,24.8]
[1764034834185,3.03,138.26,138.15,7.7758271]
[1764034834492,3.03,138.26,138.16,24.8]
[1764034834693,3.03,138.26,138.17,24.8]
[1764034834995,0.05543032,138.23,138.2,0.04898915]
[1764034835493,0.05543032,138.23,138.21,24.8]
[1764034841395,0.05543032,138.23,138.21,31.3139]
[1764034842789,0.05543032,138.23,138.21,24.8]
[1764034845999,0.05543032,138.23,138.21,31.3139]
[1764034848996,3.01,138.29,138.24,6.5125]
[1764034849202,3.01,138.29,138.25,24.8]
[1764034850099,3.06154886,138.28,138.26,0.05479085]
[1764034853406,9.57234886,138.28,138.26,0.05479085]
[1764034853603,3.01,138.27,138.26,0.05479085]
[1764034856907,3.16,138.25,138.18,46.0]
[1764034857108,3.16,138.25,138.19,24.8]
[1764034857996,0.05445847,138.23,138.21,0.04962862]
[1764034860014,3.21445847,138.23,138.21,0.04962862]
[1764034863210,0.05445847,138.23,138.21,0.04962862]
[1764034863512,0.05445847,138.23,138.21,6.56362862]
[1764034863713,0.05445847,138.23,138.21,52.56362862]
[1764034863912,3.16,138.29,138.25,6.5118]
[1764034864113,3.16,138.32,138.25,24.8]
[1764034864318,3.16,138.31,138.25,24.8]
[1764034864512,3.16,138.31,138.25,31.3118]
[1764034865113,3.213357,138.29,138.27,0.04594021]
[1764034867317,3.16,138.28,138.23,6.5127]
[1764034868426,3.16,138.28,138.24,0.05425364]
[1764034869025,9.6708,138.28,138.24,0.05425364]
[1764034869216,3.16,138.27,138.24,0.05425364]
[1764034869417,7.18872852,138.27,138.24,0.05425364]
[1764034869616,3.16,138.26,138.24,0.05425364]
[1764034870411,3.16,138.26,138.21,24.8]
[1764034870612,3.16,138.23,138.12,151.42322852]
[1764034870918,3.16,138.23,138.16,24.8]
[1764034871518,3.21133362,138.21,138.16,24.8]
[1764034872121,3.21133362,138.21,138.16,31.3163]
[1764034872320,3.21133362,138.21,138.16,24.8]
[1764034873326,3.16,138.2,138.16,24.8]
[1764034873523,0.05133362,138.21,138.16,126.163]
[1764034875128,0.05133362,138.21,138.18,6.5153]
[1764034877619,3.13133362,138.21,138.18,6.5153]
[1764034877822,3.13133362,138.21,138.16,52.5162]
[1764034878028,3.13133362,138.21,138.17,24.8]
[1764034879027,3.13133362,138.21,138.17,31.3158]
[1764034880324,0.05133362,138.21,138.17,24.8]
[1764034880928,0.05133362,138.21,138.19,6.5148]
[1764034883634,0.05133362,138.21,138.19,52.5148]
[1764034887234,0.05133362,138.21,138.2,24.8]
[1764034888041,6.55610571,138.29,138.21,101.3282]
[1764034888042,5.65847558,138.29,138.21,101.3282]
[1764034888240,10.64707776,138.28,138.22,103.90057558]
[1764034888540,3.08,138.29,138.22,103.90057558]
[1764034888839,3.08,138.29,138.24,101.3054]
[1764034889042,0.05423256,138.28,138.25,24.85247642]
[1764034889244,0.05423256,138.28,138.25,31.36427642]
[1764034889844,0.05423256,138.28,138.26,24.8]
[1764034889845,3.13423256,138.28,138.26,24.8]
[1764034890438,0.05423256,138.28,138.26,31.3114]
[1764034891244,0.05423256,138.28,138.26,33.88987558]
[1764034892744,3.08,138.34,138.3,6.5097]
[1764034892941,31.35610571,138.38,138.27,101.2837]
[1764034892942,3.08,138.37,138.31,24.8]
[1764034893139,3.08,138.36,138.32,6.5087]
[1764034893545,0.05354592,138.35,138.33,0.04633769]
[1764034893745,0.05354592,138.35,138.34,24.8]
[1764034898846,3.08,138.4,138.35,6.5074]
[1764034899050,6.5039,138.43,138.35,101.2277]
[1764034899051,8.41664574,138.43,138.35,101.2277]
[1764034899245,3.08,138.43,138.36,101.2184]
[1764034899939,6.12865866,138.48,138.38,0.05440049]
[1764034899940,3.13313403,138.41,138.38,0.05440049]
[1764034900140,3.12664677,138.41,138.39,24.8]
[1764034900450,0.04664677,138.41,138.39,24.8]
[1764034901347,3.12664677,138.41,138.39,24.8]
[1764034901650,3.08,138.4,138.38,0.04629585]
[1764034902150,3.08,138.39,138.38,0.04629585]
[1764034902851,3.08,138.39,138.35,24.8]
[1764034903849,3.12779711,138.38,138.36,0.05067324]
[1764034904350,3.12779711,138.38,138.3,46.0]
[1764034904648,3.12779711,138.38,138.31,24.8]
[1764034904850,3.08,138.38,138.31,24.8]
[1764034905154,3.13018193,138.36,138.33,0.04895893]
[1764034905449,0.05018193,138.36,138.33,0.04895893]
[1764034905645,3.13018193,138.36,138.33,0.04895893]
[1764034906352,0.05018193,138.36,138.33,6.55725893]
[1764034907449,3.14018193,138.36,138.33,0.04895893]
[1764034907655,3.14018193,138.36,138.33,24.84895893]
[1764034910648,0.05018193,138.36,138.33,31.35725893]
[1764034910947,3.14018193,138.36,138.33,0.04895893]
[1764034912751,3.09,138.34,138.33,0.04895893]
[1764034914954,3.14018193,138.36,138.33,0.04895893]
[1764034917051,9.64728193,138.36,138.33,0.04895893]
[1764034917255,2.98,138.35,138.33,0.04895893]
[1764034920262,3.03018193,138.36,138.33,0.04895893]
[1764034920456,5.60563521,138.36,138.33,0.04895893]
[1764034920761,2.98,138.35,138.33,0.04895893]
[1764034925065,2.98,138.35,138.28,27.35545328]
[1764034926056,2.98,138.32,138.29,6.5099]
[1764034933769,0.05305679,138.33,138.3,2.57545328]
[1764034933962,0.05305679,138.33,138.32,2.57545328]
[1764034936574,0.05305679,138.33,138.32,27.35545328]
[1764034937274,3.02305679,138.33,138.31,24.78]
[1764034938164,3.02305679,138.33,138.31,31.2893]
[1764034940371,0.05305679,138.33,138.31,31.2893]
[1764034941379,3.02305679,138.33,138.31,31.2893]
[1764034943072,3.02305679,138.33,138.31,6.5093]
[1764034944777,3.02305679,138.33,138.26,173.36353924]
[1764034944778,3.02305679,138.33,138.29,6.5099]
[1764034944975,2.97,138.31,138.29,6.5099]
[1764034946082,2.97,138.31,138.28,24.78]
[1764034946283,2.97,138.31,138.24,105.32960811]
[1764034946483,3.01826727,138.29,138.24,6.5124]
[1764034946781,2.97,138.27,138.25,24.78]
[1764034948578,0.04826727,138.29,138.25,24.78]
[1764034949081,0.04826727,138.29,138.27,6.5112]
[1764034958895,3.01826727,138.29,138.25,31.2918]
[1764034959594,0.04826727,138.29,138.26,6.5116]
[1764034965597,3.01826727,138.29,138.26,6.5116]
[1764034965800,0.04826727,138.29,138.26,6.5116]
[1764034967897,0.04826727,138.29,138.26,31.2916]
[1764034968099,0.04826727,138.29,138.27,6.5111]
[1764034969602,0.04826727,138.29,138.27,10.53500811]
[1764034970194,3.21826727,138.29,138.26,24.78]
[1764034972615,3.21826727,138.29,138.22,68.06482419]
[1764034972905,3.21826727,138.29,138.23,24.78]
[1764034974012,3.21826727,138.29,138.25,6.5121]
[1764034975509,0.04826727,138.29,138.26,6.5116]
[1764034976616,0.04826727,138.29,138.27,31.2912]
[1764034977910,0.04826727,138.29,138.27,35.31510811]
[1764034978921,3.1,138.34,138.3,6.5096]
[1764034979115,3.1,138.34,138.31,24.78]
[1764034979710,3.1533592,138.34,138.31,24.83064033]
[1764034981018,0.0533592,138.34,138.31,31.33984033]
[1764034981410,3.1533592,138.34,138.31,24.83064033]
[1764034982011,0.0533592,138.34,138.31,24.83064033]
[1764034982613,0.0533592,138.34,138.31,28.85454844]
[1764034983713,0.0533592,138.34,138.32,6.5088]
[1764034986516,3.1533592,138.34,138.33,24.78]
[1764034986720,0.0533592,138.34,138.33,24.78]
[1764034988419,3.1533592,138.34,138.31,24.83064033]
[1764034989124,3.1,138.33,138.31,24.83064033]
[1764034991021,0.0533592,138.34,138.31,24.83064033]
[1764034991422,3.1533592,138.34,138.31,24.83064033]
[1764034993527,0.0533592,138.34,138.31,24.83064033]
[1764034993727,3.1533592,138.34,138.31,24.83064033]
[1764034995032,0.0533592,138.34,138.31,24.83064033]
[1764034995821,0.0533592,138.34,138.31,0.05064033]
[1764034996018,0.0533592,138.34,138.31,24.83064033]
[1764034997731,0.0533592,138.34,138.31,31.33994033]
[1764034999027,0.0533592,138.34,138.32,6.5087]
[1764034999336,3.2233592,138.34,138.31,0.05064033]
[1764034999530,3.2233592,138.34,138.32,24.78]
[1764035001327,0.0533592,138.34,138.32,24.78]
[1764035003331,0.0533592,138.34,138.31,0.05064033]
[1764035003531,3.2233592,138.34,138.31,0.05064033]
[1764035003732,0.0533592,138.34,138.31,0.05064033]
[1764035004832,3.2233592,138.34,138.31,0.05064033]
[1764035005034,9.7313592,138.34,138.31,0.05064033]
[1764035005230,3.17,138.33,138.31,0.05064033]
[1764035005733,9.7313592,138.34,138.31,0.05064033]
[1764035011339,3.2233592,138.34,138.31,0.05064033]
[1764035012831,0.0533592,138.34,138.31,0.05064033]
[1764035013047,0.0533592,138.34,138.31,2.62566097]
[1764035013839,0.0533592,138.34,138.31,27.40566097]
[1764035014038,0.0533592,138.34,138.32,6.5088]
[1764035034355,6.55610571,138.39,138.36,6.507]
[1764035034661,10.64640142,138.38,138.36,31.287]
[1764035034849,9.72610571,138.42,138.38,6.506]
[1764035035044,10.59908741,138.41,138.38,6.506]
[1764035035243,10.59908741,138.4,138.38,6.506]
[1764035035445,10.59908741,138.39,138.38,6.55975806]
[1764035036255,0.04812327,138.4,138.38,6.55975806]
[1764035036749,0.04812327,138.4,138.38,0.05375806]
[1764035037058,10.58597528,138.39,138.38,0.05375806]
[1764035037260,0.04812327,138.4,138.38,0.05375806]
[1764035037557,0.04812327,138.4,138.38,6.55965806]
[1764035040559,0.04812327,138.4,138.39,2.57502064]
[1764035041053,0.04812327,138.4,138.39,27.33502064]
[1764035044854,0.04812327,138.4,138.39,24.76]
[1764035047657,4.35812327,138.4,138.38,0.05375806]
[1764035047958,2.87,138.37,138.31,24.76]
[1764035048161,2.87,138.35,138.31,24.76]
[1764035048860,2.92074133,138.34,138.32,0.04948253]
[1764035066572,9.42874133,138.34,138.32,0.04948253]
[1764035066876,0.05074133,138.34,138.26,176.07408732]
[1764035067179,3.23074133,138.34,138.3,6.5097]
[1764035068372,3.23074133,138.34,138.31,6.5092]
[1764035069873,3.23074133,138.34,138.31,31.2692]
[1764035073284,3.23074133,138.34,138.29,6.51]
[1764035073675,3.23074133,138.34,138.3,24.76]
[1764035074982,3.23074133,138.34,138.3,31.2698]
[1764035079081,3.23074133,138.34,138.31,6.5092]
[1764035079285,3.23074133,138.34,138.3,24.76]
[1764035079690,3.23074133,138.34,138.3,31.2698]
[1764035083985,0.05074133,138.34,138.31,101.2566]
[1764035084186,0.05074133,138.34,138.31,105.28028732]
[1764035085092,0.05074133,138.34,138.32,6.5088]
[1764035086493,3.23074133,138.34,138.32,24.76]
[1764035086890,3.02,138.33,138.32,24.76]
[1764035093796,3.02,138.33,138.28,24.76]
[1764035093797,3.02,138.32,138.28,24.76]
[1764035094393,8.28013426,138.31,138.28,24.76]
[1764035094594,3.07445186,138.31,138.28,24.76]
[1764035100318,3.03,138.3,138.24,10.53588732]
[1764035100508,3.03,138.3,138.25,24.76]
[1764035100704,3.03,138.28,138.21,4.02368732]
[1764035100911,3.03,138.26,138.21,24.76]
[1764035101215,3.08045244,138.25,138.21,24.76]
[1764035101612,3.08045244,138.25,138.21,31.274]
[1764035103210,0.05045244,138.25,138.21,31.274]
[1764035103809,3.08045244,138.25,138.21,31.274]
[1764035104005,0.05045244,138.25,138.21,31.274]
[1764035105008,3.08045244,138.25,138.21,24.76]
[1764035107717,3.03,138.24,138.21,24.76]
[1764035107918,3.03,138.24,138.18,1.25852124]
[1764035108118,3.03,138.24,138.18,26.01852124]
[1764035109123,3.03,138.22,138.18,26.01852124]
[1764035109324,0.0505808,138.21,138.18,26.01852124]
[1764035110214,0.0505808,138.21,138.16,6.5164]
[1764035110215,3.0805808,138.21,138.16,6.5164]
[1764035110417,3.0805808,138.21,138.16,24.78]
[1764035110822,3.03,138.2,138.16,24.78]
[1764035112323,3.03,138.2,138.15,7.77591319]
[1764035112621,3.03,138.2,138.15,26.03911319]
[1764035113920,3.03,138.2,138.15,1.25911319]
[1764035114120,3.03,138.2,138.15,26.03911319]
[1764035115028,3.03,138.2,138.15,32.55591319]
[1764035116922,0.0505808,138.21,138.16,6.5163]
[1764035117124,0.0505808,138.21,138.15,26.03911319]
[1764035117928,2.9205808,138.21,138.15,1.25911319]
[1764035118133,2.9205808,138.21,138.15,26.03911319]
[1764035119332,6.5146,138.2,138.15,26.03911319]
[1764035119632,9.3846,138.2,138.15,26.03911319]
[1764035120328,2.87,138.19,138.15,26.03911319]
[1764035121025,2.87,138.19,138.15,1.25911319]
[1764035122634,2.87,138.19,138.15,7.77591319]
[1764035123329,6.5650808,138.21,138.16,6.5162]
[1764035123330,0.0505808,138.21,138.16,6.5162]
[1764035123529,0.0505808,138.21,138.15,1.25911319]
[1764035123721,0.0505808,138.21,138.15,102.62881319]
[1764035123927,0.0505808,138.21,138.17,4.02368732]
[1764035125034,0.0505808,138.21,138.18,6.515]
[1764035125236,0.0505808,138.21,138.19,24.78]
[1764035126437,0.0505808,138.21,138.19,31.2947]
[1764035128644,0.0505808,138.21,138.2,2.57808538]
[1764035131130,0.0505808,138.21,138.19,6.5147]
[1764035131433,0.0505808,138.21,138.2,24.78]
[1764035148855,0.0505808,138.21,138.19,6.515]
[1764035149043,0.0505808,138.21,138.2,24.78]
[1764035157753,0.0505808,138.21,138.2,31.2945]
[1764035165257,0.0505808,138.21,138.2,24.78]
[1764035166369,9.27165547,138.27,138.2,31.2941]
[1764035166370,3.01,138.26,138.2,31.2941]
[1764035166662,10.62038166,138.25,138.2,24.78]
[1764035166871,10.62038166,138.24,138.2,24.78]
[1764035167059,16.21497009,138.27,138.2,24.78]
[1764035167258,10.62028765,138.26,138.2,24.78]
[1764035167454,16.21497009,138.27,138.2,24.78]
[1764035167455,0.05183448,138.24,138.22,0.04711368]
[1764035167657,0.05183448,138.24,138.23,2.57808538]
[1764035168263,0.05183448,138.24,138.23,24.78]
[1764035168770,6.69357009,138.29,138.23,27.35808538]
[1764035168959,10.58657378,138.28,138.23,27.35808538]
[1764035169159,10.58657378,138.27,138.23,27.35808538]
[1764035169359,6.69357009,138.3,138.23,27.35808538]
[1764035169567,10.58132705,138.29,138.23,33.87078538]
[1764035169767,0.05080354,138.27,138.25,0.0474526]
[1764035171975,0.05080354,138.27,138.25,6.5595526]
[1764035174870,0.05080354,138.27,138.25,9.13763798]
[1764035175075,3.01,138.31,138.25,2.62553798]
[1764035175373,3.01,138.29,138.25,2.62553798]
[1764035175573,3.01,138.29,138.25,2.57808538]
[1764035175958,3.01,138.32,138.26,24.80756331]
[1764035176262,0.05371598,138.28,138.26,24.80756331]
[1764035177373,4.39371598,138.28,138.26,0.04756331]
[1764035177672,2.9,138.26,138.22,24.76]
[1764035178470,2.9,138.24,138.23,0.04946498]
[1764035178673,2.9,138.24,138.17,9.09378538]
[1764035178674,2.9,138.23,138.22,0.04704355]
[1764035178878,2.9,138.22,138.21,0.05204404]
[1764035179076,2.9,138.22,138.15,3.83719857]
[1764035179077,2.9,138.22,138.2,0.04880426]
[1764035179369,2.9,138.21,138.2,0.04971871]
[1764035179580,2.95123713,138.22,138.2,0.04971871]
[1764035182672,9.46493713,138.22,138.2,0.04971871]
[1764035182967,9.46493713,138.22,138.16,24.76]
[1764035182968,2.9,138.21,138.16,24.76]
[1764035183562,9.4142,138.21,138.16,24.76]
[1764035183763,2.9,138.2,138.16,24.76]
[1764035184161,2.9,138.2,138.17,0.05343283]
[1764035187086,2.9,138.21,138.17,0.05343283]
[1764035188275,2.95123713,138.22,138.17,0.05343283]
[1764035189178,2.95123713,138.22,138.17,6.56923283]
[1764035193680,0.05123713,138.22,138.17,0.05343283]
[1764035194276,0.05123713,138.22,138.19,6.5149]
[1764035194482,0.05123713,138.22,138.2,24.76]
[1764035195180,2.95123713,138.22,138.2,24.76]
[1764035197683,0.05123713,138.22,138.2,24.76]
[1764035203489,0.05123713,138.22,138.2,31.2745]
[1764035205085,2.95123713,138.22,138.2,24.76]
[1764035205586,2.95123713,138.22,138.18,6.515]
[1764035205889,2.95123713,138.22,138.19,24.76]
[1764035207380,0.05123713,138.22,138.19,24.76]
[1764035207879,0.05123713,138.22,138.2,24.76]
[1764035209890,0.05123713,138.22,138.2,31.2745]
[1764035217888,2.97,138.29,138.21,101.3281]
[1764035218091,5.22627062,138.28,138.22,101.3215]
[1764035218288,2.97,138.31,138.22,101.3215]
[1764035218488,13.52890679,138.3,138.22,101.3215]
[1764035218684,0.0486217,138.27,138.25,0.04603284]
[1764035218889,0.0486217,138.27,138.26,24.76]
[1764035220291,0.0486217,138.27,138.25,6.55813284]
[1764035220599,3.0186217,138.27,138.25,0.04603284]
[1764035220795,3.0186217,138.27,138.26,24.76]
[1764035222193,8.21425605,138.27,138.26,24.76]
[1764035222397,8.21425605,138.27,138.25,24.80603284]
[1764035222598,3.0186217,138.27,138.25,24.80603284]
[1764035224698,0.0486217,138.27,138.25,24.80603284]
[1764035225092,3.0186217,138.27,138.25,0.04603284]
[1764035232198,0.0486217,138.27,138.25,0.04603284]
[1764035233002,3.0186217,138.27,138.25,0.04603284]
[1764035233204,3.0186217,138.27,138.25,24.80603284]
[1764035233393,0.0486217,138.27,138.25,24.80603284]
[1764035233597,0.0486217,138.27,138.25,31.31813284]
[1764035235600,9.66357009,138.33,138.25,24.80603284]
[1764035235906,2.97,138.31,138.25,24.80603284]
[1764035236107,13.46190516,138.3,138.25,24.76]
[1764035236406,2.97,138.3,138.26,6.5114]
[1764035236605,0.05459306,138.29,138.27,0.05083052]
[1764035239403,3.20459306,138.29,138.27,0.05083052]
[1764035241908,0.05459306,138.29,138.27,0.05083052]
[1764035242103,0.05459306,138.29,138.27,6.56203052]
[1764035248015,3.20459306,138.29,138.27,0.05083052]
[1764035248210,3.20459306,138.29,138.28,24.74]
[1764035248613,0.05459306,138.29,138.28,24.74]
[1764035257522,3.20459306,138.29,138.28,24.74]
[1764035258124,0.05459306,138.29,138.28,24.74]
[1764035262107,0.05459306,138.29,138.27,2.62717327]
[1764035262308,0.05459306,138.29,138.28,24.74]
[1764035263308,0.05459306,138.29,138.27,0.05083052]
[1764035263512,5.29689808,138.28,138.27,0.05083052]
[1764035263724,8.44689808,138.28,138.27,0.05083052]
[1764035265119,5.29689808,138.28,138.23,6.513]
[1764035265321,3.15,138.26,138.24,24.74]
[1764035266225,3.20261362,138.26,138.24,24.78684465]
[1764035272823,3.20261362,138.26,138.24,0.04684465]
[1764035273025,2.99,138.24,138.21,24.74]
[1764035273922,2.99,138.23,138.21,0.04894841]
[1764035274724,9.5032,138.23,138.21,0.04894841]
[1764035275024,2.99,138.22,138.21,0.04894841]
[1764035278226,2.99,138.22,138.15,1.25911319]
[1764035278426,2.99,138.22,138.16,24.74]
[1764035278731,3.13,138.24,138.17,2.57634275]
[1764035279333,3.17822033,138.22,138.19,0.02463525]
[1764035279828,0.04822033,138.22,138.19,2.600978]
[1764035280223,0.04822033,138.22,138.21,2.57634275]
[1764035280425,0.04822033,138.22,138.21,24.74]
[1764035280821,3.17822033,138.22,138.19,0.02463525]
[1764035281025,3.17822033,138.22,138.19,24.78463525]
[1764035281426,0.04822033,138.22,138.19,31.29953525]
[1764035283142,3.17822033,138.22,138.19,31.29953525]
[1764035283336,5.75456308,138.22,138.15,1.25911319]
[1764035283543,3.13,138.19,138.15,1.25911319]
[1764035283738,3.13,138.19,138.15,10.0]
[1764035284533,3.1793874,138.18,138.15,10.0]
[1764035285240,0.0493874,138.18,138.15,10.0]
[1764035286636,3.1793874,138.18,138.15,10.0]
[1764035287037,0.0493874,138.18,138.15,10.0]
[1764035288138,3.1793874,138.18,138.14,6.5171]
[1764035288336,0.0493874,138.18,138.16,2.57634275]
[1764035289037,0.0493874,138.18,138.17,24.76]
[1764035290035,0.0493874,138.18,138.13,123.94502065]
[1764035290036,3.1793874,138.18,138.16,24.76]
[1764035291743,0.0493874,138.18,138.16,24.76]
[1764035295442,3.1793874,138.18,138.14,6.5172]
[1764035295640,3.1793874,138.18,138.13,1.25943217]
[1764035295943,3.1793874,138.18,138.13,26.01943217]
[1764035297046,2.96,138.17,138.13,32.53713217]
[1764035297547,2.96,138.17,138.13,26.01943217]
[1764035297937,2.96,138.17,138.13,1.25943217]
[1764035298138,2.96,138.16,138.13,1.25943217]
[1764035299139,2.96,138.16,138.11,24.76]
[1764035299140,2.96,138.14,138.11,24.76]
[1764035299338,3.00640323,138.14,138.11,24.76]
[1764035299538,3.00640323,138.14,138.06,2.57634275]
[1764035299539,2.96,138.11,138.06,1.25991094]
[1764035299745,2.96,138.08,137.99,13.52909055]
[1764035300043,2.96,138.08,137.95,2.57634275]
[1764035300044,2.96,138.04,137.95,2.57634275]
[1764035300252,2.96,138.03,137.95,6.91634275]
[1764035300433,2.96,138.03,137.96,2.57634275]
[1764035300639,0.05383854,138.0,137.96,2.57634275]
[1764035300945,0.05383854,138.0,137.95,26.25012844]
[1764035301139,0.05383854,138.0,137.96,2.57634275]
[1764035301340,0.05383854,138.0,137.95,6.91634275]
[1764035301542,3.01383854,138.0,137.95,4.34]
[1764035302138,0.05383854,138.0,137.95,6.91634275]
[1764035302348,0.05383854,138.0,137.96,2.57634275]
[1764035303044,0.05383854,138.0,137.96,109.29966094]
[1764035303245,3.01383854,138.0,137.9,101.5549]
[1764035303448,0.04833437,137.97,137.93,2.57634275]
[1764035303649,0.04833437,137.97,137.93,3.83757789]
[1764035304048,0.04833437,137.97,137.93,105.37277789]
[1764035304243,0.04833437,137.97,137.95,2.57634275]
[1764035305037,0.04833437,137.97,137.95,104.09484275]
[1764035305349,0.04833437,137.97,137.96,2.57634275]
[1764035305539,2.96,138.03,137.96,2.57634275]
[1764035305540,2.96,138.03,137.97,101.5053]
[1764035305740,2.96,138.06,137.99,101.4916]
[1764035305949,2.96,138.06,138.0,2.57634275]
[1764035306145,2.96,138.05,137.98,2.57634275]
[1764035306347,2.96,138.05,137.99,24.86]
[1764035306647,3.00950755,138.03,138.01,0.04798988]
[1764035307847,3.00950755,138.03,137.94,6.5268]
[1764035308044,2.96,138.01,137.95,24.86]
[1764035308946,0.05174611,137.99,137.95,24.86]
[1764035309253,0.05174611,137.99,137.98,2.57634275]
[1764035310340,2.96,138.05,138.0,6.5237]
[1764035310847,2.96,138.08,138.0,6.5237]
[1764035311244,2.96,138.08,138.01,6.5232]
[1764035311452,2.96,138.08,138.03,0.04722745]
[1764035311453,0.0549105,138.06,138.03,0.04722745]
[1764035311650,0.0549105,138.06,138.03,24.92722745]
[1764035312636,3.0149105,138.06,138.03,24.92722745]
[1764035312844,3.0149105,138.06,137.94,101.5261]
[1764035313149,2.96,138.06,137.96,24.88]
[1764035313337,2.96,138.04,137.96,24.88]
[1764035313941,3.00985298,138.01,137.96,24.88]
[1764035316148,0.04985298,138.01,137.96,24.88]
[1764035316847,0.04985298,138.01,137.96,126.3908]
[1764035317247,0.04985298,138.01,137.98,6.5246]
[1764035317748,0.04985298,138.01,137.97,101.5066]
[1764035318145,0.04985298,138.01,137.97,6.5252]
[1764035318552,0.04985298,138.01,137.96,126.3906]
[1764035319152,0.04985298,138.01,137.99,6.5242]
[1764035321547,0.04985298,138.01,137.96,126.3906]
[1764035322149,3.00985298,138.01,137.96,24.88]
[1764035322350,3.00985298,138.01,137.95,1.26075537]
[1764035322543,3.00985298,138.01,137.96,24.9]
[1764035323052,3.00985298,138.01,137.97,24.9]
[1764035323458,2.96,137.99,137.97,24.9]
[1764035325357,0.04985298,138.01,137.97,24.9]
[1764035325358,2.96,138.0,137.97,24.9]
[1764035326355,2.96,138.0,137.97,22.22689321]
[1764035326656,2.96,137.98,137.97,22.22689321]
[1764035327560,3.04,138.0,137.97,22.22689321]
[1764035329955,3.04,137.99,137.97,22.22689321]
[1764035331964,3.08985298,138.01,137.97,22.22689321]
[1764035332653,0.04985298,138.01,137.97,28.75219321]
[1764035333465,3.08985298,138.01,137.97,28.75219321]
[1764035333962,3.08985298,138.01,137.97,22.22689321]
[1764035335062,3.08985298,138.01,137.93,106.83449268]
[1764035335063,3.08985298,138.01,137.93,102.79442088]
[1764035335251,3.08985298,138.01,137.94,24.9]
[1764035336161,2.94,138.0,137.94,31.4265]
[1764035336362,2.94,137.99,137.94,24.9]
[1764035336660,2.98990961,137.98,137.94,24.9]
[1764035337565,9.51490961,137.98,137.94,24.9]
[1764035337864,2.94,137.97,137.94,24.9]
[1764035338263,9.4655,137.97,137.91,6.5281]
[1764035338768,9.4655,137.97,137.9,24.92]
[1764035339066,2.99498246,137.95,137.9,24.92]
[1764035340859,0.05498246,137.95,137.9,31.4486]
[1764035341366,2.99498246,137.95,137.9,24.92]
[1764035342961,2.99498246,137.95,137.89,1.26146373]
[1764035342962,2.94,137.93,137.89,1.26146373]
[1764035343164,6.5268,137.94,137.89,1.26146373]
[1764035343364,0.05498246,137.95,137.89,1.26146373]
[1764035343968,0.05498246,137.95,137.91,6.5281]
[1764035344968,0.05498246,137.95,137.92,6.5277]